[Event "CCT Airthings Masters Play-In 2023"]
[Site "Online"]
[Date "2023.02.03"]
[Round "4"]
[White "GHANDEEVAM"]
[Black "platy3"]
[Result "1-0"]
[ECO "D00"]
[WhiteElo "2717"]
[BlackElo "2583"]
[Annotator "TA"]
[PlyCount "71"]
[EventDate "2023.02.03"]
[EventType "swiss"]
[EventCountry "NET"]
[SourceTitle "playchess.com"]
[Source "ChessBase"]
[SourceQuality "1"]
[TimeControl "600+2"]

{[%evp 9,71,-4,-10,-14,-2,-5,-15,-20,-7,-34,-31,-25,-28,-22,-25,-35,-61,-54,38,30,35,23,31,1,16,16,16,2,17,14,51,53,61,64,144,127,136,159,152,143,160,150,156,143,138,103,114,94,167,108,109,88,82,85,114,81,433,410,614,612,585,519,1460,1548]} 1. d4 {[%emt 0:00:03]} d5 {[%emt 0:00:07]} 2. Nc3 {[%emt 0:00:02]} Nf6 {[%emt 0:00:10]} 3. Bf4 {[%emt 0:00:01]} e6 {[%emt 0:00:01]} 4. Nb5 {[%emt 0:00:02]} Na6 {[%emt 0:00:11]} 5. e3 {[%emt 0:00:01]} Be7 {[%emt 0:00:05]} 6. Nf3 {[%emt 0:00:01] D00: 1 d4 d5: Unusual lines.} O-O {[%emt 0:00:03]} 7. h4 {[%emt 0:00:01]} c6 {[%emt 0:00:38]} 8. Nc3 {[%emt 0:00:02] The position is equal.} Qa5 {[%emt 0:00:01] [#]} 9. Be2 $146 {[%emt 0:00:19]} ({Predecessor:} 9. Bd3 c5 10. O-O Nb4 11. Be2 c4 12. Ne5 Nd7 13. h5 Nxe5 14. Bxe5 Nc6 15. Bf4 {1-0 Zhalmakhanov,R (2414)-Xu,Z (2515) Online Olym Div Top-A rapid 2021 (4.1)}) 9... Ne4 {[%emt 0:00:05]} 10. O-O {[%emt 0:00:01]} Nxc3 {[%emt 0:00:10]} 11. bxc3 {[%emt 0:00:00]} Qxc3 {[%emt 0:00:01]} 12. Rb1 {[%emt 0:00:01]} Nb4 {[%emt 0:00:14]} 13. a3 {[%emt 0:00:01]} Na6 {[%emt 0:00:51]} (13... Nxc2 14. Rc1 $16) (13... Qxa3 $15 14. Qd2 Qa5) 14. Bxa6 $14 {[%emt 0:01:18]} bxa6 {[%emt 0:00:02]} 15. Ne5 {[%emt 0:00:00]} Bd6 {[%emt 0:00:57]} (15... Bxa3 $2 16. Rb3 Qa5 17. Qa1 $18 (17. Nxc6 Qa4 $11)) 16. Qg4 {[%emt 0:00:04]} (16. Rb3 $5 Qa5 $8 17. Nxc6 $11) 16... Bxe5 {[%emt 0:00:51]} (16... Qxa3 $2 17. Bh6 g6 18. Qf4 $18 (18. Nxc6 Qa4 $11) (18. Bxf8 Bxf8 19. c4 Qe7 $16)) 17. Bxe5 {[%emt 0:00:08][%csl Ge5][%cal Rg4g7]} f6 $1 {[%emt 0:00:02] Black is weak on the dark squares} 18. Bd6 {[%emt 0:00:02][%mdl 1024] White has compensation.} Rf7 $1 {[%emt 0:00:39]} 19. Qe2 {[%emt 0:00:01]} e5 {[%emt 0:00:40]} 20. Rb3 {[%emt 0:00:15][%cal Bb1b3,Bb3c3,Bc3c6,Bc6c5][%mdl 32]} Qc4 {[%emt 0:00:02]} 21. Qd2 {[%emt 0:00:01] And now Rfb1 would win.} Bf5 {[%emt 0:00:43]} (21... exd4 $1 $14 22. Rfb1 Rd7) 22. Rfb1 $1 $16 {[%emt 0:00:13]} h6 {[%emt 0:00:21]} (22... Qxc2 $2 23. Qxc2 Bxc2 24. Rb8+ $18) 23. Rc3 $1 {[%emt 0:00:18]} Qa4 {[%emt 0:00:35]} (23... Qa2 $2 24. Qc1 $18) 24. Rb4 $1 {[%emt 0:00:18]} (24. dxe5 $6 Qxh4 25. Rb4 (25. Rxc6 fxe5 26. Rf1 Re8 $11) 25... Qh5 $14) 24... Qa5 {[%emt 0:00:01]} 25. dxe5 {[%emt 0:00:01]} fxe5 {[%emt 0:00:06]} 26. Rxc6 {[%emt 0:00:11] aiming for Rb8+.} Re8 {[%emt 0:00:05] [#] Repels Rb8} 27. Bxe5 $1 {[%emt 0:00:14][%mdl 576] Deflection} Qxa3 {[%emt 0:00:10]} (27... Bd7 $2 28. Rc7 $18) 28. Bb2 {[%emt 0:00:06] White is more active.} Qa5 {[%emt 0:00:09]} (28... Qa2 $16 {was worth a try.}) 29. Qc3 {[%emt 0:00:36]} ({Better is} 29. Rxh6 $18 {Black must now prevent Rh5.} Be4 30. Rh5) 29... Kh7 {[%emt 0:01:04]} 30. Rc5 {[%emt 0:01:27]} Qd8 {[%emt 0:00:02] [#]} 31. Rf4 $1 $36 {[%emt 0:00:02][%cal Of4f5][%mdl 2048] Dodges Be4. Rxf5! is the strong threat. White is in control.} Qd7 {[%emt 0:00:10]} 32. Qa5 {[%emt 0:00:30]} Be4 {[%emt 0:00:18][%mdl 8192] [#] Loses the game.} (32... Qb7 $16 {is a better chance.}) 33. f3 $1 $18 {[%emt 0:00:01]} (33. Qxa6 $2 Rxf4 34. exf4 Qg4 $19) 33... Bxf3 {[%emt 0:01:13]} (33... Bg6 $142 34. h5 {[%mdl 64] Decoy} (34. Qxa6 Rxf4 35. exf4 Re1+ 36. Kf2 Qe7 $11) (34. Rxd5 Qb7 $16) 34... Bxh5 35. Rxd5 (35. Qxa6 Rxf4 36. exf4 Qe7 $15) 35... Qb7) 34. Rxf3 {[%emt 0:00:00] White is clearly winning.} Rxf3 {[%emt 0:00:02]} 35. gxf3 {[%emt 0:00:00] Rc7 would be deadly.} Qh3 {[%emt 0:00:01]} (35... Rc8 $142 36. Rxd5 Qe7) 36. Qc7 {[%emt 0:00:01] Weighted Error Value: White=0.10 (very precise) /Black=0.42} (36. Rxd5 $2 {loses.} Rxe3 37. Qc7 Re1+ 38. Kf2 Rf1+ 39. Ke3 Qxf3+ 40. Kd4 Rd1+ 41. Kc4 Qxd5+ $19) (36. Qxa6 Qg3+ 37. Kh1 Qxf3+ 38. Kh2 Qf2+ 39. Kh1 Rxe3) 1-0

[Event "CCT Airthings Masters Play-In 2023"]
[Site "Online"]
[Date "2023.02.03"]
[Round "4"]
[White "mishanick"]
[Black "chessintuit"]
[Result "1-0"]
[ECO "D48"]
[WhiteElo "2699"]
[BlackElo "2562"]
[Annotator "TA"]
[PlyCount "117"]
[EventDate "2023.02.03"]
[EventType "swiss"]
[EventCountry "NET"]
[SourceTitle "playchess.com"]
[Source "ChessBase"]
[SourceQuality "1"]
[TimeControl "600+2"]

{[%evp 23,117,0,7,-5,85,19,20,0,170,179,160,151,164,183,168,180,196,181,193,179,170,169,202,134,133,-26,0,0,0,-30,0,0,0,-93,-99,-87,-103,-101,-50,-133,-116,-223,-146,-195,-124,-259,-87,-195,-200,-235,-233,-383,-184,-213,-197,-246,-222,-258,-254,-308,-285,-635,-544,-651,-648,-768,-762,-1440,-1368,-1888,-1597,-1668,-1716,-1802,-1664,-1989,-1989,-29979,0,0,0,-29979,-29978,-29980,-1041,-1041,0,-29980,-29981,-29983,-29978,-29979,-29979,-29983,-29978,-29975]} 1. d4 {[%emt 0:00:13]} d5 {[%emt 0:00:06]} 2. c4 {[%emt 0:00:01]} c6 {[%emt 0:00:01]} 3. Nf3 {[%emt 0:00:02]} Nf6 {[%emt 0:00:02]} 4. Nc3 {[%emt 0:00:00]} e6 {[%emt 0:00:01]} 5. e3 {[%emt 0:00:01]} Nbd7 {[%emt 0:00:02]} 6. Bd3 {[%emt 0:00:01]} dxc4 {[%emt 0:00:01]} 7. Bxc4 {[%emt 0:00:01]} b5 {[%emt 0:00:01]} 8. Bd3 {[%emt 0:00:00]} a6 {[%emt 0:00:02]} 9. e4 {[%emt 0:00:05]} c5 {[%emt 0:00:09]} 10. d5 {[%emt 0:00:00]} Qc7 {[%emt 0:01:34]} 11. O-O {[%emt 0:00:10]} Bb7 {[%emt 0:00:10]} 12. dxe6 {[%emt 0:00:07]} fxe6 {[%emt 0:00:00]} 13. Qe2 {[%emt 0:00:02] D48: Semi-Slav: Meran System: 7...b5 8 Bd3 a6.} Be7 {[%emt 0:00:42]} (13... c4 $11 14. Bc2 Bd6) 14. Ng5 {[%emt 0:00:13]} ({White should try} 14. e5 $16 Nd5 15. Ng5 Bxg5 16. Nxd5 (16. Bxg5 Nxc3 17. bxc3 O-O $14) 16... Bxd5 17. Qh5+ (17. Bxg5 Qxe5 18. Be3 c4 $15) 17... Kd8 18. Qxg5+ (18. Bxg5+ Kc8 $16) 18... Kc8 19. Re1 (19. Qxg7 Qxe5 20. Qxe5 Nxe5 $11)) 14... Qc6 $11 {[%emt 0:00:02]} 15. f4 {[%emt 0:00:06] [#] aiming for e5. The position is equal.} h6 $146 {[%emt 0:00:50]} (15... c4 $11 {and Black stays safe.} 16. Bc2 e5) ({Predecessor:} 15... c4 16. Bc2 b4 17. e5 bxc3 18. exf6 Bxf6 19. bxc3 Nc5 20. Ba3 Nd3 21. Nxe6 Kd7 {1-0 Rivera,A (2389)-Portnoy,I (2083) Bogota Mila Memorial op 2009 (3)}) 16. e5 $1 $18 {[%emt 0:02:03]} hxg5 {[%emt 0:00:02]} 17. exf6 {[%emt 0:00:04]} Bxf6 {[%emt 0:01:25]} 18. Be4 $1 {[%emt 0:00:06]} Qb6 {[%emt 0:00:40]} (18... Bd4+ $2 19. Be3 (19. Kh1 Qc8 $16) 19... Qd6 20. Bxb7 $18) 19. Bxb7 {[%emt 0:00:03][%mdl 64] Overworked Piece} (19. fxg5 $6 Bd4+ 20. Be3 O-O-O $11) 19... Qxb7 {[%emt 0:00:02]} (19... Bd4+ $2 20. Be3 Ra7 21. Be4 $18) 20. Qxe6+ {[%emt 0:00:01]} Kd8 {[%emt 0:00:01]} 21. fxg5 {[%emt 0:00:08]} Bd4+ {[%emt 0:00:35]} 22. Kh1 $1 {[%emt 0:00:02] Hoping for Bf4.} (22. Be3 $2 Re8 23. Qd6 Bxe3+ $19) 22... Re8 {[%emt 0:00:29]} 23. Qg4 {[%emt 0:00:05] Black must now prevent Bf4.} b4 {[%emt 0:00:09]} 24. Nd1 {[%emt 0:00:10]} (24. Ne2 $16 Qe4 25. Qxe4 Rxe4 26. Nxd4 cxd4 27. g6) 24... Ne5 {[%emt 0:00:25][%mdl 1024] Black has compensation.} 25. Qg3 {[%emt 0:00:03]} Qb5 {[%emt 0:00:04][%cal Rb5f1]} 26. Ne3 {[%emt 0:00:20]} (26. Re1 $5) 26... Kc7 {[%emt 0:00:41]} 27. Bd2 {[%emt 0:00:21]} (27. Rf7+ Kc6 28. Rf2 (28. Rxg7 $2 Qe2 $19) 28... Rad8 $17) 27... Rf8 $40 {[%emt 0:00:05][%mdl 128] Black is up to no good.} (27... Bxb2 $2 28. Rab1 Rf8 29. Rfd1 $18 (29. Rxf8 Rxf8 30. Qe1 Kb7 $11)) ({Don't take} 27... Kb7 28. Nf5 Rad8 29. Nxg7 Bxb2 30. Nxe8 Rxd2 31. Rab1 Qxe8 32. Qe3 $16) 28. Nd5+ {[%emt 0:00:08]} (28. Rae1 $11 {keeps the balance.}) 28... Kb7 $17 {[%emt 0:00:09]} 29. Nf4 {[%emt 0:00:03][%cal Od2c3]} Bxb2 {[%emt 0:00:10]} 30. Rae1 {[%emt 0:00:03]} Bd4 {[%emt 0:00:05]} (30... Rad8 $17 31. Be3 Bc3) 31. h3 {[%emt 0:00:19]} ({White should play} 31. Rb1 $1 $15) 31... Rae8 {[%emt 0:00:01]} 32. Bc1 {[%emt 0:00:08]} (32. Rd1 $17 {was worth a try.}) 32... a5 {[%emt 0:00:12]} 33. Rd1 {[%emt 0:00:07]} (33. Be3 $17 {keeps fighting.}) 33... a4 {[%emt 0:00:05]} ({Better is} 33... Nc4 $19 34. Ne2 Be5) 34. Rfe1 {[%emt 0:00:01]} (34. Be3 $17) 34... Bc3 $2 {[%emt 0:00:17]} (34... Qc4 $19 {has better winning chances.} 35. Bd2 Ka6) 35. Re4 {[%emt 0:00:07]} (35. Bd2 $17 Bxd2 36. Rxd2) 35... Rd8 $1 $19 {[%emt 0:00:03]} 36. Rg1 {[%emt 0:00:05] [#]} Rfe8 {[%emt 0:00:04] Against Ne6} 37. Nh5 {[%emt 0:00:07]} (37. Re2 $142) 37... Bd4 {[%emt 0:00:19]} (37... Nd3 $142 38. Rxe8 Qxe8 39. Qf3+ Qc6 40. Qf7+ Qc7) 38. Be3 {[%emt 0:00:16][%cal Oe3d4] And now Bxd4! would win.} Nd3 {[%emt 0:00:20]} 39. Rxe8 {[%emt 0:00:12]} (39. Qf3 {is a better defense.} Rxe4 40. Qxe4+ Kb6 41. Bxd4 Rxd4 42. Qa8 (42. Qe6+ $2 Qc6 $19)) 39... Qxe8 {[%emt 0:00:00]} 40. Bxd4 {[%emt 0:00:01]} Rxd4 {[%emt 0:00:00]} 41. Nxg7 {[%emt 0:00:05] [#]} Qf7 {[%emt 0:00:01][%csl LRa2,LRg7]} 42. g6 $2 {[%emt 0:00:14] White is weak on the dark squares} (42. Qf3+ Qxf3 43. gxf3) 42... Qxg7 {[%emt 0:00:04]} 43. Rf1 {[%emt 0:00:01]} Rd7 {[%emt 0:00:05] Wards off Rf7} 44. h4 {[%emt 0:00:25]} b3 {[%emt 0:00:01]} 45. Qg4 {[%emt 0:00:16]} Qd4 {[%emt 0:00:12]} 46. Qf3+ {[%emt 0:01:00]} Ka7 {[%emt 0:00:04]} 47. axb3 {[%emt 0:00:47]} Qxh4+ {[%emt 0:00:01]} 48. Kg1 {[%emt 0:00:01]} Qd4+ {[%emt 0:00:01]} 49. Kh1 {[%emt 0:00:01]} axb3 {[%emt 0:00:05][%cal Ba4b3,Bb3b2][%mdl 32] Strongly threatening ...b2.} 50. Qc6 {[%emt 0:00:00]} Qh4+ {[%emt 0:00:03]} 51. Kg1 {[%emt 0:00:01] Ra1+ is the strong threat. Dancing on a razor blade.} Qd4+ {[%emt 0:00:00]} 52. Kh1 {[%emt 0:00:00]} b2 {[%emt 0:00:11]} 53. Qb5 {[%emt 0:00:08]} Qh4+ {[%emt 0:00:18]} (53... Nf2+ $142 54. Kh2 Rb7 55. Qa5+ Kb8 56. Qa2 Qh8+ 57. Kg3 Rb4 58. Qd5 Ne4+ 59. Kg4 Nc3+ 60. Qc4 Rxc4+ 61. Kg5 Qe5+ 62. Rf5 Ne4+ 63. Kh5 Qh2+ 64. Kg4 Qxg2+ 65. Kh4 Nf6+ 66. Rf4 Rxf4#) 54. Kg1 {[%emt 0:00:01]} Qd4+ {[%emt 0:00:02]} 55. Kh1 {[%emt 0:00:01]} Nf2+ {[%emt 0:00:19] Black mates.} 56. Kh2 {[%emt 0:00:15]} Ng4+ {[%emt 0:00:11]} 57. Kg3 {[%emt 0:00:03]} Qe3+ {[%emt 0:00:08]} 58. Rf3 {[%emt 0:00:44]} Qe5+ {[%emt 0:00:02]} 59. Kh4 {[%emt 0:00:01][%mdl 32768] An interesting game.   Weighted Error Value: White=0.86/Black=0.28 (precise) . Sensor Board Error (Ke4/e5)?} 1-0

[Event "CCT Airthings Masters Play-In 2023"]
[Site "Online"]
[Date "2023.02.03"]
[Round "4"]
[White "xxysoul6"]
[Black "Nepomniachtchi, Ian"]
[Result "1/2-1/2"]
[ECO "C12"]
[WhiteElo "2669"]
[BlackElo "2793"]
[Annotator "TA"]
[PlyCount "62"]
[EventDate "2023.02.03"]
[EventType "swiss"]
[EventCountry "NET"]
[SourceTitle "playchess.com"]
[Source "ChessBase"]
[SourceQuality "1"]
[TimeControl "600+2"]

{[%evp 10,62,45,40,48,52,48,27,63,42,64,0,0,5,16,0,0,0,35,47,45,0,37,43,45,15,22,8,36,31,31,22,39,38,35,35,32,17,22,0,7,2,7,0,0,0,0,0,0,0,0,0,0,0,0]} 1. d4 {[%emt 0:00:26]} Nf6 {[%emt 0:00:28]} 2. Bg5 {[%emt 0:00:04]} e6 {[%emt 0:00:05]} 3. e4 {[%emt 0:00:01]} h6 {[%emt 0:00:04]} 4. Bxf6 {[%emt 0:00:01]} Qxf6 {[%emt 0:00:00]} 5. Nc3 {[%emt 0:00:00]} d5 {[%emt 0:00:01]} 6. exd5 {[%emt 0:00:46]} Bb4 {[%emt 0:00:03] C12: French: Classical System: McCutcheon Variation.} 7. dxe6 {[%emt 0:00:16]} Bxe6 {[%emt 0:00:05]} 8. Nf3 {[%emt 0:00:23]} Nc6 {[%emt 0:00:09] White has an edge.} 9. a3 {[%emt 0:00:18]} Ba5 {[%emt 0:00:38] [#] White must now prevent ...0-0-0.} 10. Qd3 $146 {[%emt 0:01:05]} (10. Bb5 $1 $14) ({Predecessor:} 10. Bb5 O-O-O 11. Bxc6 bxc6 12. O-O Bg4 13. Ne4 Bxf3 14. Qxf3 Qxf3 15. gxf3 Rxd4 16. Rfd1 {1-0 Karjakin,S (2757)-Van Foreest,J (2701) Carlsen Inv Prelim rapid 2021 (6)}) 10... O-O-O $11 {[%emt 0:00:22]} 11. O-O-O {[%emt 0:00:02]} Rhe8 {[%emt 0:00:03]} 12. h3 {[%emt 0:01:29] Prevents Bg4} (12. Ne4 $5 {[%cal Re4f6]} Qf4+ 13. Qe3 $11) 12... Bb6 {[%emt 0:00:31][%cal Rc6d4]} 13. d5 {[%emt 0:00:16] Strongly threatening Qb5.} Ne5 {[%emt 0:02:04]} (13... Ba5 $5) 14. Nxe5 {[%emt 0:00:23]} Qxe5 {[%emt 0:00:01]} 15. Qg3 {[%emt 0:00:12]} (15. Qf3 $5 {[%cal Rd5e6]} Bd7 16. Kb1 $14 (16. Qxf7 Rf8 $11)) 15... Qxg3 {[%emt 0:00:57]} 16. fxg3 {[%emt 0:00:01]} Bd7 {[%emt 0:00:00]} 17. Bd3 {[%emt 0:00:12]} f5 {[%emt 0:00:04]} 18. Rde1 {[%emt 0:00:43]} h5 {[%emt 0:00:19]} 19. Rhf1 {[%emt 0:00:45]} g6 {[%emt 0:00:21]} 20. Rxe8 {[%emt 0:00:17]} Rxe8 {[%emt 0:00:03][%cal Bd8e8,Be8e5,Be5g5][%mdl 32] [#]} 21. g4 $1 {[%emt 0:00:03]} hxg4 {[%emt 0:00:49]} 22. hxg4 {[%emt 0:00:01]} Re5 {[%emt 0:00:07]} 23. gxf5 {[%emt 0:01:32]} Bxf5 {[%emt 0:00:16] The position is equal.} 24. Bxf5+ {[%emt 0:00:14]} gxf5 $14 {[%emt 0:00:02][%mdl 4096] Endgame KRB-KRN} 25. Rh1 {[%emt 0:00:09]} f4 {[%emt 0:00:51]} 26. Kb1 {[%emt 0:00:38]} Rg5 {[%emt 0:00:07]} 27. Ne2 {[%emt 0:00:13]} Be3 {[%emt 0:00:10]} 28. Rf1 {[%emt 0:00:02]} Rxg2 {[%emt 0:00:23]} 29. Nxf4 {[%emt 0:00:01]} Rg5 {[%emt 0:00:01] And now ...Rf5 would win.} 30. Rf3 {[%emt 0:00:02]} Bxf4 {[%emt 0:00:04]} 31. Rxf4 {[%emt 0:00:00]} Rxd5 {[%emt 0:00:00] Weighted Error Value: White=0.14 (very precise) /Black=0.09 (flawless)} 1/2-1/2

[Event "CCT Airthings Masters Play-In 2023"]
[Site "Online"]
[Date "2023.02.03"]
[Round "4"]
[White "Bigfish"]
[Black "alexrustemov"]
[Result "0-1"]
[ECO "E08"]
[WhiteElo "2664"]
[BlackElo "2536"]
[Annotator "TA"]
[PlyCount "180"]
[EventDate "2023.02.03"]
[EventType "swiss"]
[EventCountry "NET"]
[SourceTitle "playchess.com"]
[Source "ChessBase"]
[SourceQuality "1"]
[TimeControl "600+2"]

{[%evp 20,180,9,8,8,8,8,5,8,4,7,12,17,0,0,-8,-3,0,0,0,0,-3,1,-25,-11,-13,-2,-9,-12,-16,-8,-27,0,-6,-14,-39,-34,-54,-54,-47,-30,-56,-10,-40,0,-11,-12,-22,-33,-78,0,0,0,0,0,0,0,0,54,30,23,36,48,25,28,0,0,0,0,0,0,0,0,-162,-128,-103,-107,-115,-119,-117,-107,-87,-64,-121,-100,-264,-262,-746,-734,-745,-691,-765,-763,-736,-664,-772,-761,-850,-827,-928,-815,-771,-745,-1097,-1079,-1038,-1016,-1367,-780,-755,-745,-926,-685,-616,-613,-29957,-29967,-29962,-29965,-29974,-29975,-29975,-29972,-29971,-29973,-29970,-4066,-29979,-29980,-29980,-29981,-29981,-29982,-29982,-29973,-29973,-29974,-29974,-29973,-29974,-29973,-29973,-29974,-29974,-29975,-29975,-29976,-29972,-29977,-29977,-29978,-29979,-29979,-29981,-29982,-29984,-29985,-29985,-29986,-29986,-29987,-29990,-29991]} 1. d4 {[%emt 0:00:25]} d5 {[%emt 0:00:06]} 2. c4 {[%emt 0:00:02]} e6 {[%emt 0:00:02]} 3. Nf3 {[%emt 0:00:01]} Nf6 {[%emt 0:00:01]} 4. g3 {[%emt 0:00:04]} Bb4+ {[%emt 0:00:04]} 5. Bd2 {[%emt 0:00:02]} Be7 {[%emt 0:00:01]} 6. Bg2 {[%emt 0:00:02]} O-O {[%emt 0:00:01]} 7. O-O {[%emt 0:00:01]} Nbd7 {[%emt 0:00:01]} 8. Qc2 {[%emt 0:00:05]} c6 {[%emt 0:00:01]} 9. Bf4 {[%emt 0:00:03]} b6 {[%emt 0:00:03]} 10. Rd1 {[%emt 0:00:16]} Bb7 {[%emt 0:00:17]} 11. Ne5 {[%emt 0:00:59] 11.Ne5 is better than 11.Nc3.} Nh5 {[%emt 0:00:26] E08: Closed Catalan: Main Line: 7 Qc2.} 12. Bd2 {[%emt 0:00:49]} Nhf6 {[%emt 0:00:13]} 13. cxd5 {[%emt 0:00:09]} cxd5 {[%emt 0:00:09] The position is equal.} 14. Nc6 {[%emt 0:00:19]} Bxc6 {[%emt 0:00:37]} 15. Qxc6 {[%emt 0:00:02]} Qc8 {[%emt 0:00:03]} 16. Qa4 {[%emt 0:00:25]} Qb7 {[%emt 0:00:06] [#]} 17. Bb4 $146 {[%emt 0:00:44]} ({Predecessor:} 17. Nc3 Rac8 18. e3 a6 19. Rdc1 Rc7 20. Ne2 Rfc8 21. Rxc7 Rxc7 {½-½ Donchenko,A (2563)-Neiksans,A (2599) FRA-chT Top 12 2017 (10.1)}) 17... b5 {[%emt 0:00:39]} 18. Qa3 {[%emt 0:00:03]} Bxb4 {[%emt 0:00:02]} 19. Qxb4 {[%emt 0:00:00]} a5 {[%emt 0:00:06]} 20. Qb3 {[%emt 0:00:07]} b4 {[%emt 0:00:07]} 21. a4 {[%emt 0:00:54] Inhibits Qb5.} Rfc8 {[%emt 0:00:26]} 22. Nd2 {[%emt 0:00:37]} Qc6 {[%emt 0:00:12]} 23. e3 {[%emt 0:00:08]} Nb6 {[%emt 0:00:21]} 24. Bf1 {[%emt 0:00:14]} Nc4 {[%emt 0:00:16]} 25. Nf3 {[%emt 0:00:30]} Nd6 {[%emt 0:00:17]} 26. Bd3 {[%emt 0:00:04]} Rc7 {[%emt 0:00:15]} 27. Kg2 {[%emt 0:00:35]} (27. Ne5 $5 {[%cal Re5c6]} Qb7 28. Rac1 $15) 27... Rac8 {[%emt 0:00:03]} 28. Rd2 {[%emt 0:00:04]} Nfe4 {[%emt 0:00:36]} 29. Re2 {[%emt 0:00:06]} f6 {[%emt 0:00:27]} 30. Rae1 {[%emt 0:00:26]} Qb7 {[%emt 0:00:10]} (30... g5 $15) 31. h4 {[%emt 0:00:09]} h5 {[%emt 0:00:05]} 32. Nh2 {[%emt 0:00:13]} Nc4 {[%emt 0:00:08]} 33. Nf1 {[%emt 0:00:11]} f5 {[%emt 0:00:31]} 34. Rd1 {[%emt 0:00:24]} g6 {[%emt 0:00:04] Black has more active pieces. The white rooks are badly placed.} ({Black should try} 34... g5 $1 $17 {[%cal Rg5h4] Strongly threatening ...gxh4.} 35. f3 Ncd6 36. hxg5 (36. fxe4 fxe4 37. hxg5 exd3 $17) 36... Nxg5) 35. Nh2 $11 {[%emt 0:00:05][%cal Bf1h2,Bh2f3,Bf3e5][%mdl 32]} Kg7 {[%emt 0:00:01]} 36. Nf3 {[%emt 0:00:02]} Rc6 {[%emt 0:00:07]} 37. Rde1 {[%emt 0:00:09]} Qc7 {[%emt 0:00:03]} 38. Qd1 {[%emt 0:00:23]} Nb6 {[%emt 0:00:21]} ({Black should play} 38... Qb7 $11) 39. Ne5 {[%emt 0:00:52]} (39. Ba6 $5 {[%cal Ra6c8]}) 39... Rc1 {[%emt 0:00:04]} 40. Qxc1 {[%emt 0:00:02]} Qxc1 {[%emt 0:00:01]} 41. Rxc1 {[%emt 0:00:00]} Rxc1 {[%emt 0:00:01]} 42. b3 {[%emt 0:00:02]} Rc3 {[%emt 0:00:07][%cal Bc1c3,Bc3b3,Bb3d3,Bd3d2,Bd2f2,Bf2f3,Bf3g3][%mdl 32]} 43. Rc2 {[%emt 0:00:14]} Rxb3 {[%emt 0:00:15] ...Nc3 would be deadly.} 44. Rc6 {[%emt 0:00:09] Prevents Nc3} Nc4 {[%emt 0:00:14] White must now prevent ...Nxe5.} 45. Rc7+ $1 {[%emt 0:00:01]} Kg8 {[%emt 0:00:02]} 46. Nxc4 {[%emt 0:00:16]} (46. Rc8+ $11 Kg7 47. Rc7+ Kf8 48. Bxe4 fxe4 49. Nxg6+ Ke8 50. g4) 46... Rxd3 {[%emt 0:00:05]} 47. Nxa5 {[%emt 0:00:03][%mdl 4096] Endgame KRN-KRN} Rd2 $1 {[%emt 0:00:05]} 48. Rb7 {[%emt 0:00:01]} ({Not} 48. Rc8+ $2 Kg7 49. Rb8 (49. Rc7+ $2 Kf6 $19) 49... Rxf2+ 50. Kg1 Re2 $19) 48... Rxf2+ {[%emt 0:00:01]} 49. Kg1 {[%emt 0:00:00]} Rf3 {[%emt 0:00:31]} 50. Nc6 {[%emt 0:00:01]} Rxg3+ {[%emt 0:00:07]} 51. Kf1 {[%emt 0:00:01]} (51. Kh2 $1 $15) 51... Rxe3 $17 {[%emt 0:00:00]} 52. a5 $2 {[%emt 0:00:02] Now White is beyond hope.} (52. Ne7+ $17 {was the only chance.} Kf8 53. Nxg6+ Ke8 54. a5) 52... Ra3 $19 {[%emt 0:00:02]} 53. Rxb4 $2 {[%emt 0:00:01]} (53. Ne7+ Kg7 54. Nxd5+ Kh6 55. Ne7) 53... f4 {[%emt 0:00:07]} 54. Rb8+ {[%emt 0:00:05]} Kg7 {[%emt 0:00:01]} 55. Rb7+ {[%emt 0:00:02]} Kf6 {[%emt 0:00:18]} 56. Ne5 {[%emt 0:00:02] [#]} Ng3+ $1 {[%emt 0:00:07]} (56... Rxa5 $2 57. Rf7#) 57. Kg2 {[%emt 0:00:05][%csl Ge5][%cal Rb7f7]} Kf5 {[%emt 0:00:01]} (57... Rxa5 $2 58. Rf7#) 58. Nf3 {[%emt 0:00:05]} Rxa5 {[%emt 0:00:16] Hoping for ...Ra2+.} 59. Kh3 {[%emt 0:00:01]} Ke4 {[%emt 0:00:04]} 60. Ng5+ {[%emt 0:00:01]} Kxd4 {[%emt 0:00:08]} 61. Nxe6+ {[%emt 0:00:01]} Ke5 {[%emt 0:00:01]} 62. Ng5 {[%emt 0:00:02]} Ra3 {[%emt 0:00:03]} 63. Re7+ {[%emt 0:00:01]} Kd6 {[%emt 0:00:09] ( -> ...Ne4+)} 64. Re6+ {[%emt 0:00:00]} Kc5 {[%emt 0:00:00]} 65. Rxg6 {[%emt 0:00:02]} Nf5+ {[%emt 0:00:09]} 66. Kh2 {[%emt 0:00:01]} Nxh4 {[%emt 0:00:01]} 67. Rf6 {[%emt 0:00:02]} Nf3+ {[%emt 0:00:01]} 68. Nxf3 {[%emt 0:00:03]} Rxf3 {[%emt 0:00:01] KR-KR} 69. Rf5 {[%emt 0:00:01]} h4 {[%emt 0:00:14][%cal Bh5h4,Bh4h3][%mdl 32]} 70. Kg2 {[%emt 0:00:01]} Rg3+ {[%emt 0:00:01]} 71. Kf2 {[%emt 0:00:01]} h3 {[%emt 0:00:07]} 72. Rxf4 {[%emt 0:00:01]} Rg2+ {[%emt 0:00:01]} (72... Ra3 $142 73. Kg1 d4 74. Rf8 d3 75. Kf2 h2 76. Rc8+ Kb4 77. Rh8 Kc3 78. Rh5 d2 79. Rxh2 d1=Q 80. Rh3+ Kb2 81. Rxa3 Kxa3 82. Kg3 Qh5 83. Kg2 Kb2 84. Kg1 Kc3 85. Kg2 Qg4+ 86. Kh1 Kd2 87. Kh2 Ke3 88. Kh1 Kf2 89. Kh2 Qh5#) 73. Kf1 {[%emt 0:00:06]} Ra2 {[%emt 0:00:03] Black mates.} 74. Kg1 {[%emt 0:00:01]} d4 {[%emt 0:00:03][%cal Bd5d4,Bd4d3,Bd3d2][%mdl 32]} 75. Rf3 {[%emt 0:00:01]} Kc4 {[%emt 0:00:07]} 76. Rxh3 {[%emt 0:00:03]} Re2 {[%emt 0:00:06]} 77. Kf1 {[%emt 0:00:07]} d3 {[%emt 0:00:02]} 78. Rh8 {[%emt 0:00:03]} Re4 {[%emt 0:00:05]} 79. Rc8+ {[%emt 0:00:02]} Kd4 {[%emt 0:00:01]} 80. Kf2 {[%emt 0:00:01]} d2 {[%emt 0:00:02]} 81. Rd8+ {[%emt 0:00:01]} Kc3 {[%emt 0:00:01]} 82. Rc8+ {[%emt 0:00:05]} Kd3 {[%emt 0:00:02]} 83. Rd8+ {[%emt 0:00:01]} Kc2 {[%emt 0:00:00]} 84. Rc8+ {[%emt 0:00:01] [#]} Kd1 $1 {[%emt 0:00:01]} 85. Rd8 {[%emt 0:00:02]} Re7 {[%emt 0:00:02]} 86. Rd5 {[%emt 0:00:02]} Rf7+ {[%emt 0:00:02]} 87. Kg2 {[%emt 0:00:03]} Ke2 {[%emt 0:00:12]} 88. Re5+ {[%emt 0:00:02]} Kd3 {[%emt 0:00:02]} 89. Rd5+ {[%emt 0:00:01]} Ke3 {[%emt 0:00:00]} 90. Rd8 {[%emt 0:00:04]} Rf4 {[%emt 0:00:04] Weighted Error Value: White=0.34/Black=0.09 (flawless)} 0-1